fUST/lending_fUST_20240705
["ID","MTS","AMOUNT","RATE_DAILY","PERIOD"]
[331239665,1720151443151,-33417.11,0.00025481,3]
[331239666,1720151443161,-35286.0,0.00025491,3]
[331239667,1720151443170,-8262.48793138,0.00025491,3]
[331239668,1720151443180,-467.76292814,0.00025493,2]
[331239670,1720151443189,-52100.07365113,0.00025501,2]
[331239672,1720151443203,-30000.0,0.00025501,2]
[331239673,1720151443213,-221.3976023,0.00025593,2]
[331239675,1720151443222,-174.84477909,0.00025673,2]
[331239677,1720151443231,-242.47333673,0.0002568,2]
[331239678,1720151443240,-153.17115845,0.00025704,2]
[331239679,1720151443253,-57214.94712358,0.00025869,2]
[331239680,1720151443262,-150.30016482,0.00025977,2]
[331239681,1720151443271,-221.3976023,0.00026035,2]
[331239682,1720151443281,-205.68247621,0.00026046,2]
[331239683,1720151443290,-226.0,0.00026078,62]
[331239684,1720151443300,-226.0,0.00026088,62]
[331239685,1720151443310,-226.0,0.00026098,62]
[331239686,1720151443319,-9128.24569758,0.00026108,2]
[331239697,1720151444374,-31588.40363436,0.00026108,2]
[331239698,1720151444383,-8262.48793138,0.00026109,3]
[331239699,1720151444393,-205.68247621,0.00026112,2]
[331239700,1720151444402,-156.25095608,0.00026162,2]
[331239701,1720151444412,-153.17115845,0.00026385,2]
[331239702,1720151444421,-174.84477909,0.00026473,2]
[331239703,1720151444431,-3000.0,0.000265,2]
[331239704,1720151444440,-3000.0,0.0002651,2]
[331239705,1720151444452,-151.0,0.0002651,7]
[331239706,1720151444461,-183.245512,0.0002651,7]
[331239707,1720151444471,-183.245512,0.0002651,7]
[331239708,1720151444480,-173.920059,0.0002651,7]
[331239709,1720151444490,-173.920059,0.0002651,7]
[331239710,1720151444499,-151.0,0.0002651,7]
[331239711,1720151444509,-3000.0,0.0002652,2]
[331239712,1720151444518,-3000.0,0.0002653,2]
[331239713,1720151444527,-3000.0,0.0002654,2]
[331239714,1720151444537,-153.17115845,0.00026699,2]
[331239715,1720151444547,-159.2983416,0.0002672,2]
[331239716,1720151444556,-205.68247621,0.00027052,2]
[331239717,1720151444566,-159.49645922,0.00027182,2]
[331239718,1720151444575,-738.397311,0.00027195,2]
[331239719,1720151444585,-202.501671,0.00027195,2]
[331239720,1720151444595,-8262.48793138,0.00027387,3]
[331239721,1720151444604,-449.619889,0.00027397,120]
[331239722,1720151444615,-174.84477909,0.00027607,2]
[331239723,1720151444624,-242.47333673,0.00027608,2]
[331239724,1720151444633,-205.68247621,0.00027827,2]
[331239725,1720151444643,-221.3976023,0.00027971,2]
[331239726,1720151444653,-17247.80566422,0.00027999,2]
[331239727,1720151444663,-205.68247621,0.00028016,2]
[331239728,1720151444672,-221.3976023,0.00028142,2]
[331239729,1720151444682,-221.3976023,0.00028198,2]
[331239730,1720151444691,-174.84477909,0.00028294,2]
[331239731,1720151444702,-153.17115845,0.00028352,2]
[331239732,1720151444712,-221.3976023,0.00028426,2]
[331239733,1720151444721,-40000.0,0.00028446,2]
[331239734,1720151444740,-183.245512,0.00028446,7]
[331239735,1720151444753,-183.245512,0.00028446,7]
[331239736,1720151444763,-173.920059,0.00028446,7]
[331239737,1720151444773,-173.920059,0.00028446,7]
[331239738,1720151444783,-151.0,0.00028446,7]
[331239739,1720151444793,-242.47333673,0.00028522,2]
[331239740,1720151444803,-205.68247621,0.00028738,2]
[331239741,1720151444813,-156.25095608,0.00028786,2]
[331239742,1720151444823,-174.84477909,0.00028852,2]
[331239743,1720151444833,-467.76292813,0.00029092,2]
[331239744,1720151444843,-150.30016482,0.00029163,2]
[331239745,1720151444853,-242.47333673,0.00029347,2]
[331239746,1720151444863,-1663.50600526,0.00029444,20]
[331239747,1720151444873,-899.05329518,0.00029444,20]
[331239748,1720151444883,-205.68247621,0.00029481,2]
[331239749,1720151444893,-159.49645922,0.00029489,2]
[331239750,1720151444903,-150.30016482,0.00029565,2]
[331239751,1720151444914,-763.20815407,0.00029591,2]
[331239752,1720151444924,-427.95620224,0.00029591,2]
[331239753,1720151444934,-4172.94461587,0.00029591,2]
[331239754,1720151444944,-189.04078712,0.00029591,2]
[331239755,1720151444957,-225.53942994,0.00029591,2]
[331239756,1720151444966,-704.029973,0.00029591,7]
[331239757,1720151444975,-225.84034338,0.00029591,7]
[331239764,1720151447067,-500.0,0.00026108,7]
[331239791,1720152233249,2700.0,0.00029498,30]
[331239792,1720152350209,-300.0,0.00014997,2]
[331239793,1720152350230,-300.0,0.00014997,2]
[331239794,1720152350250,-36.01566834,0.00014998,2]
[331239795,1720152425145,-300.0,0.00014997,2]
[331239796,1720152425167,-5491.9958774,0.00014998,2]
[331239797,1720152435418,-548.88968656,0.00014998,2]
[331239798,1720152435580,-6268.38409547,0.00014998,2]
[331239799,1720152605659,-166.0,0.00014997,2]
[331239800,1720152605684,-3346.84682984,0.00014998,2]
[331239801,1720152605715,-5791.9958774,0.00014998,2]
[331239802,1720152605739,-3130.40828598,0.00014999,4]
[331239803,1720152605766,-1147.547486,0.00015032,2]
[331239804,1720152605793,-3000.0,0.00015254,2]
[331239805,1720152605819,-1313.56760153,0.00016145,2]
[331239806,1720152605845,-14267.5097448,0.00016244,2]
[331239807,1720152605871,-7133.75487239,0.00016245,2]
[331239808,1720152605897,-500.0,0.00016253,2]
[331239809,1720152605923,-500.0,0.00016253,2]
[331239810,1720152605950,-500.0,0.00016253,2]
[331239811,1720152605981,-500.0,0.00016253,2]
[331239812,1720152606007,-500.0,0.00016253,2]
[331239813,1720152606038,-363.42590509,0.00016253,2]
[331239814,1720152606064,-500.0,0.00016253,2]
[331239815,1720152606090,-500.0,0.00016253,2]
[331239816,1720152606116,-500.0,0.00016253,2]
[331239817,1720152606142,-500.0,0.00016253,2]
[331239818,1720152606168,-500.0,0.00016253,2]
[331239819,1720152606194,-500.0,0.00016253,2]
[331239820,1720152606224,-500.0,0.00016253,2]
[331239821,1720152606402,-500.0,0.00016253,2]
[331239822,1720152606433,-500.0,0.00016253,2]
[331239823,1720152606465,-334.06263501,0.00016253,2]
[331239824,1720152606492,-500.0,0.00016253,2]
[331239825,1720152606520,-500.0,0.00016253,2]
[331239826,1720152606547,-500.0,0.00016253,2]
[331239827,1720152606575,-57214.94712358,0.00016254,2]
[331239828,1720152606602,-80458.21337801,0.00016254,2]
[331239829,1720152606631,-20358.32466597,0.00016255,2]
[331239830,1720152606734,-17247.80566422,0.00016255,2]
[331239831,1720152606873,-30000.0,0.00016255,2]
[331239832,1720152606900,-6981.98564229,0.00016255,2]
[331239833,1720152606926,-166.666666,0.00016438,2]
[331239834,1720152606953,-276.42306753,0.00016808,2]
[331239835,1720152606980,-166.666666,0.00016823,2]
[331239836,1720152607006,-166.666666,0.00017208,2]
[331239837,1720152607031,-154.74467129,0.00017302,2]
[331239838,1720152607057,-166.666666,0.00017592,2]
[331239839,1720152607082,-166.666666,0.00017977,2]
[331239840,1720152607108,-221.54923793,0.00018179,2]
[331239841,1720152607132,-10575.75912083,0.00018179,2]
[331239842,1720152607157,-166.666666,0.00018362,2]
[331239843,1720152607183,-250.0,0.00019041,2]
[331239844,1720152607209,-159.314575,0.00019178,2]
[331239845,1720152607234,-159.745545,0.00019178,2]
[331239846,1720152611756,6981.98564229,0.00014998,2]
[331239847,1720152612088,169.50434797,0.0002,2]
[331239931,1720152639284,-750.0,0.00021096,2]
[331239933,1720152639295,-196.669602,0.00021096,2]
[331239935,1720152639306,-239.70701363,0.00022,2]
[331239936,1720152639316,-879.23230837,0.00022387,2]
[331239937,1720152639327,-304.956547,0.000225,10]
[331239938,1720152639338,-7133.75487239,0.00022931,3]
[331239939,1720152639349,-226.57706463,0.00023286,2]
[331239940,1720152639360,-168.02307734,0.00023446,2]
[331239941,1720152639371,-226.57706463,0.00023564,2]
[331239942,1720152639382,-206.6942531,0.00023573,2]
[331239943,1720152639396,-226.57706463,0.00023734,2]
[331239945,1720152639407,-181.71513062,0.00023805,2]
[331239947,1720152639416,-181.71513062,0.00023964,2]
[331239949,1720152639426,-168.02307734,0.0002411,2]
[331239951,1720152639438,-4711.13030053,0.0002448,2]
[331239952,1720152639448,-151.02721061,0.00024645,2]
[331239953,1720152639457,-200.0,0.00024658,15]
[331239954,1720152639468,-181.71513062,0.00024917,2]
[331239955,1720152639479,-168.02307734,0.00024924,2]
[331239956,1720152639490,-183.11749787,0.00024926,2]
[331239957,1720152639500,-154.76012181,0.00025,2]
[331239958,1720152639511,-193.40528129,0.00025,2]
[331239959,1720152639521,-293.33394095,0.00025,2]
[331239960,1720152639531,-183.11749787,0.00025063,2]
[331239961,1720152639541,-168.02307734,0.00025304,2]
[331239962,1720152639551,-183.11749787,0.00025313,2]
[331239963,1720152639562,-226.57706463,0.0002535,2]
[331239964,1720152639571,-335.55903529,0.00025361,2]
[331239965,1720152639582,-181.71513062,0.00025391,2]
[331239966,1720152639592,-168.02307734,0.00025485,2]
[331239967,1720152639722,-151.76,0.00025491,62]
[331239968,1720152639734,-7133.75487239,0.00025491,3]
[331239969,1720152639744,-500.0,0.000255,2]
[331239970,1720152639755,-409.02777153,0.000255,2]
[331239971,1720152639764,-500.0,0.000255,2]
[331239972,1720152639775,-500.0,0.000255,2]
[331239973,1720152639786,-500.0,0.000255,2]
[331239974,1720152639796,-350.2187905,0.000255,2]
[331239975,1720152639806,-52100.07365113,0.00025501,2]
[331239976,1720152639816,-1597.44376902,0.00025501,7]
[331239977,1720152639826,-183.11749787,0.00025533,2]
[331239978,1720152639836,-226.57706463,0.00025665,2]
[331239979,1720152639846,-150.30016481,0.00025701,2]
[331239980,1720152639857,-183.11749787,0.00025877,2]
[331239981,1720152639867,-156.25095608,0.00025937,2]
[331239982,1720152639877,-168.02307734,0.00026096,2]
[331239983,1720152639887,-226.57706463,0.00026405,2]
[331239984,1720152639898,-166.77891538,0.00026464,2]
[331239985,1720152639908,-150.0,0.000265,2]
[331239986,1720152639918,-159.71091917,0.00027102,2]
[331239987,1720152639930,-226.57706463,0.00027107,2]
[331239988,1720152639940,-226.57706463,0.00027157,2]
[331239989,1720152639951,-620.13090409,0.00027181,2]
[331239990,1720152639962,-239.551692,0.00027184,7]
[331239991,1720152639971,-151.0,0.00027184,7]
[331239992,1720152639982,-151.0,0.00027184,7]
[331239993,1720152639992,-151.0,0.00027184,7]
[331239995,1720152640002,-3968.06642419,0.00027184,2]
[331239996,1720152640012,-3968.06642419,0.00027184,2]
[331239997,1720152640022,-750.0,0.00027195,2]
[331239998,1720152640032,-196.669602,0.00027195,2]
[331239999,1720152640043,-226.57706463,0.00027384,2]
[331240000,1720152640053,-423.752273,0.00027397,120]
[331240001,1720152640064,-156.25095608,0.00027581,2]
[331240002,1720152640074,-151.02721061,0.00027614,2]
[331240003,1720152640083,-151.02721061,0.00027716,2]
[331240004,1720152640094,-226.57706463,0.00027718,2]
[331240005,1720152640104,-181.71513062,0.00027785,2]
[331240006,1720152640114,-166.77891538,0.00027846,2]
[331240007,1720152640123,-168.02307734,0.00028099,2]
[331240008,1720152640133,-183.11749787,0.00028168,2]
[331240009,1720152640143,-23206.33,0.00028226,3]
[331240010,1720152640153,-14267.5097448,0.00028236,3]
[331240011,1720152640162,-152.983901,0.00028246,7]
[331240012,1720152640172,-151.0,0.00028246,7]
[331240013,1720152640182,-151.0,0.00028246,7]
[331240014,1720152640192,-151.0,0.00028246,7]
[331240015,1720152640202,-156.20612,0.00028246,7]
[331240016,1720152640212,-600.122267,0.00028246,7]
[331240017,1720152640222,-600.122267,0.00028246,7]
[331240018,1720152640234,-813.695826,0.00028246,7]
[331240019,1720152640244,-228.341063,0.00028246,7]
[331240020,1720152640253,-813.695826,0.00028246,7]
[331240021,1720152640263,-151.0,0.00028246,7]
[331240022,1720152640273,-541.926812,0.00028246,7]
[331240023,1720152640283,-541.926812,0.00028246,7]
[331240024,1720152640292,-269.537641,0.00028246,7]
[331240025,1720152640302,-269.537641,0.00028246,7]
[331240027,1720152640312,-151.0,0.00028246,7]
[331240029,1720152640322,-1046.560283,0.00028246,7]
[331240030,1720152640332,-1046.560283,0.00028246,7]
[331240031,1720152640342,-1257.67642,0.00028246,7]
[331240032,1720152640352,-1257.67642,0.00028246,7]
[331240033,1720152640361,-563.554859,0.00028246,7]
[331240034,1720152640371,-563.554859,0.00028246,7]
[331240035,1720152640385,-151.834853,0.00028246,7]
[331240036,1720152640398,-161.876773,0.00028246,7]
[331240037,1720152640408,-161.876773,0.00028246,7]
[331240038,1720152640417,-151.0,0.00028246,7]
[331240039,1720152640427,-151.0,0.00028246,7]
[331240040,1720152640438,-88888.0,0.00028246,3]
[331240041,1720152640447,-151.0,0.00028346,7]
[331240042,1720152640457,-151.0,0.00028346,7]
[331240043,1720152640468,-151.0,0.00028346,7]
[331240044,1720152640478,-151.0,0.00028346,7]
[331240045,1720152640490,-168.02307734,0.00028408,2]
[331240046,1720152640499,-183.11749787,0.00028418,2]
[331240047,1720152640512,-226.57706463,0.00028597,2]
[331240048,1720152640521,-226.57706463,0.00028621,2]
[331240049,1720152640530,-153.17110575,0.00028955,2]
[331240050,1720152640540,-151.02721061,0.00028978,2]
[331240051,1720152640549,-335.55903526,0.00028993,2]
[331240052,1720152640558,-1083.0,0.00029,30]
[331240055,1720152640567,-159.71091917,0.00029004,2]
[331240057,1720152640576,-151.02721061,0.00029161,2]
[331240059,1720152640585,-150.0,0.00029386,2]
[331240060,1720152640594,-24379.56777085,0.00029497,2]
[331240061,1720152640604,-587.92208219,0.00029497,2]
[331240062,1720152640613,-763.20815407,0.00029498,2]
[331240063,1720152640622,-225.53942994,0.00029498,2]
[331240064,1720152640632,-189.04078712,0.00029498,2]
[331240065,1720152640642,-4172.94461587,0.00029498,2]
[331240066,1720152640652,-427.95620224,0.00029498,2]
[331240067,1720152640662,-1687.0,0.0002956,30]
[331240068,1720152640672,-949.999999,0.00029608,30]
[331240069,1720152640682,-7133.75487239,0.00029783,3]
[331240070,1720152640693,-151.0,0.00029793,7]
[331240071,1720152640703,-151.0,0.00029793,7]
[331240072,1720152640714,-151.0,0.00029793,7]
[331240073,1720152640724,-151.0,0.00029793,7]
[331240074,1720152640740,-151.0,0.00029793,7]
[331240075,1720152640750,-152.445345,0.00029793,7]
[331240076,1720152640762,-238.800352,0.00029793,7]
[331240077,1720152640772,-238.800352,0.00029793,7]
[331240078,1720152640783,-569.931886,0.00029793,7]
[331240079,1720152640794,-569.931886,0.00029793,7]
[331240080,1720152640805,-151.0,0.00029793,7]
[331240081,1720152640815,-151.0,0.00029793,7]
[331240082,1720152640825,-151.0,0.00029793,7]
[331240083,1720152640835,-151.0,0.00029793,7]
[331240084,1720152640844,-219.931303,0.00029793,7]
[331240085,1720152640854,-219.931303,0.00029793,7]
[331240086,1720152640864,-600.122267,0.00029793,7]
[331240087,1720152640873,-600.122267,0.00029793,7]
[331240088,1720152640883,-813.695826,0.00029793,7]
[331240089,1720152640893,-813.695826,0.00029793,7]
[331240090,1720152640902,-151.0,0.00029793,7]
[331240091,1720152640912,-541.926812,0.00029793,7]
[331240092,1720152640922,-541.926812,0.00029793,7]
[331240093,1720152640931,-269.537641,0.00029793,7]
[331240094,1720152640940,-269.537641,0.00029793,7]
[331240096,1720152640950,-151.0,0.00029793,7]
[331240098,1720152640960,-1046.560283,0.00029793,7]
[331240100,1720152640970,-1046.560283,0.00029793,7]
[331240101,1720152640983,-1257.67642,0.00029793,7]
[331240102,1720152640993,-1257.67642,0.00029793,7]
[331240103,1720152641002,-563.554859,0.00029793,7]
[331240104,1720152641011,-563.554859,0.00029793,7]
[331240105,1720152641020,-161.876773,0.00029793,7]
[331240106,1720152641030,-161.876773,0.00029793,7]
[331240107,1720152641039,-151.0,0.00029793,7]
[331240108,1720152641049,-151.0,0.00029793,7]
[331240109,1720152641058,-3078.85157566,0.00029793,2]
[331240110,1720152641068,-159.2983416,0.00029804,2]
[331240111,1720152641078,-151.0,0.00029813,7]
[331240112,1720152641088,-151.0,0.00029813,7]
[331240113,1720152641099,-151.0,0.00029813,7]
[331240114,1720152641109,-157.995137,0.00029823,7]
[331240115,1720152641119,-151.0,0.00029823,7]
[331240116,1720152641128,-151.0,0.00029823,7]
[331240117,1720152641138,-151.0,0.00029823,7]
[331240118,1720152641147,-151.0,0.00029823,7]
[331240119,1720152641157,-166.77891538,0.00029834,2]
[331240120,1720152641166,-151.0,0.00029868,7]
[331240121,1720152641175,-256.54,0.00029879,7]
[331240122,1720152641185,-151.0,0.00029879,7]
[331240123,1720152641194,-151.0,0.00029879,7]
[331240124,1720152641204,-151.530363,0.00029879,7]
[331240125,1720152641214,-151.0,0.00029879,7]
[331240126,1720152641224,-151.0,0.00029879,7]
[331240127,1720152641233,-226.57706463,0.00029894,2]
[331240128,1720152641243,-1724.35538883,0.00029979,2]
[331240129,1720152641253,-351.32038796,0.0003,30]
[331240130,1720152641263,-173.0,0.0003,2]
[331240131,1720152641272,-151.465463,0.00030137,7]
[331240132,1720152641283,-181.71513062,0.00030143,7]
[331240133,1720152641292,-150.0,0.0003023,2]
[331240134,1720152641302,-153.17110575,0.00030259,7]
[331240135,1720152641312,-156.25095608,0.00030286,7]
[331240136,1720152641321,-153.17110575,0.00030359,7]
[331240137,1720152641331,-168.02307734,0.00030409,7]
[331240138,1720152641340,-226.57706463,0.00030462,7]
[331240139,1720152641349,-150.30016481,0.0003049,7]
[331240140,1720152641359,-181.71513062,0.00030511,7]
[331240141,1720152641369,-168.02307734,0.00030747,7]
[331240142,1720152641379,-168.02307734,0.00030767,7]
[331240143,1720152641390,-183.11749787,0.00030933,7]
[331240144,1720152641401,-150.0,0.0003123,2]
[331240145,1720152641410,-151.0,0.00031645,7]
[331240146,1720152641419,-153.444471,0.00031698,7]
[331240147,1720152641430,-151.0,0.00031698,7]
[331240148,1720152641439,-151.0,0.00031698,7]
[331240149,1720152641449,-159.71091917,0.00031712,7]
[331240150,1720152641458,-183.11749787,0.00031793,7]
[331240151,1720152641467,-153.17110575,0.00031851,7]
[331240152,1720152641479,-158.0,0.00031933,62]
[331240153,1720152641490,-158.0,0.00031943,62]
[331240154,1720152641500,-158.0,0.00031953,62]
[331240155,1720152641510,-423.752273,0.00031963,120]
[331240156,1720152641520,-150.0,0.0003223,2]
[331240157,1720152641530,-151.02721061,0.00032292,7]
[331240158,1720152641539,-183.11749787,0.0003232,7]
[331240159,1720152641549,-183.11749787,0.00032616,7]
[331240160,1720152641558,-335.55903526,0.00032625,2]
[331240161,1720152641568,-156.25095608,0.00032632,7]
[331240162,1720152641577,-183.11749787,0.00032636,7]
[331240163,1720152641586,-181.71513062,0.00032666,7]
[331240164,1720152641596,-226.57706463,0.0003275,7]
[331240165,1720152641605,-183.11749787,0.00032916,7]
[331240166,1720152641615,-173.0,0.00033,2]
[331240167,1720152641625,-173.0,0.00033,2]
[331240168,1720152641634,-7133.75487239,0.00033284,4]
[331240169,1720152641644,-750.0,0.00033295,2]
[331240170,1720152641654,-196.669602,0.00033295,2]
[331240171,1720152641663,-153.17110575,0.00033453,7]
[331240172,1720152641672,-226.57706463,0.00033473,7]
[331240173,1720152641682,-181.71513062,0.00033506,7]
[331240174,1720152641691,-151.0,0.00033831,7]
[331240175,1720152641701,-151.0,0.00033831,7]
[331240176,1720152641711,-151.0,0.00033831,7]
[331240177,1720152641720,-151.0,0.00033831,7]
[331240178,1720152641730,-21401.2646172,0.00033832,4]
[331240179,1720152641740,-151.0,0.00033832,7]
[331240180,1720152641749,-151.0,0.00033832,7]
[331240181,1720152641759,-151.0,0.00033832,7]
[331240182,1720152641769,-151.0,0.00033832,7]
[331240183,1720152641781,-151.0,0.00033832,7]
[331240184,1720152641792,-151.0,0.00033832,7]
[331240185,1720152641802,-151.0,0.00033832,7]
[331240186,1720152641812,-151.0,0.00033832,7]
[331240187,1720152641822,-238.800352,0.00033832,7]
[331240188,1720152641832,-238.800352,0.00033832,7]
[331240189,1720152641929,-569.931886,0.00033832,7]
[331240190,1720152641940,-569.931886,0.00033832,7]
[331240191,1720152641949,-151.0,0.00033832,7]
[331240192,1720152641959,-151.0,0.00033832,7]
[331240193,1720152641968,-165.041881,0.00033832,7]
[331240194,1720152641978,-151.0,0.00033832,7]
[331240195,1720152641990,-219.931303,0.00033832,7]
[331240196,1720152641999,-219.931303,0.00033832,7]
[331240197,1720152642008,-600.122267,0.00033832,7]
[331240198,1720152642017,-600.122267,0.00033832,7]
[331240199,1720152642030,-813.695826,0.00033832,7]
[331240200,1720152642039,-813.695826,0.00033832,7]
[331240201,1720152642049,-151.0,0.00033832,7]
[331240202,1720152642058,-541.926812,0.00033832,7]
[331240203,1720152642068,-541.926812,0.00033832,7]
[331240204,1720152642077,-269.537641,0.00033832,7]
[331240205,1720152642086,-269.537641,0.00033832,7]
[331240206,1720152642096,-151.0,0.00033832,7]
[331240207,1720152642105,-1046.560283,0.00033832,7]
[331240208,1720152642115,-1046.560283,0.00033832,7]
[331240209,1720152642124,-1257.67642,0.00033832,7]
[331240210,1720152642134,-1257.67642,0.00033832,7]
[331240211,1720152642143,-563.554859,0.00033832,7]
[331240212,1720152642152,-563.554859,0.00033832,7]
[331240213,1720152642162,-161.876773,0.00033832,7]
[331240214,1720152642172,-161.876773,0.00033832,7]
[331240215,1720152642181,-151.0,0.00033832,7]
[331240216,1720152642191,-151.0,0.00033832,7]
[331240217,1720152642200,-8784.24132294,0.00033841,2]
[331240218,1720152642209,-5558.95619709,0.00033842,60]
[331240219,1720152642366,-695.48082098,0.00033842,60]
[331240290,1720152871505,150.5,0.0001878,62]
[331240291,1720152871897,150.5,0.0001877,62]
[331240292,1720152872397,292.33,0.0001876,62]
[331240293,1720152872519,150.5,0.0001878,62]
[331240294,1720152872711,158.0,0.0001878,62]
[331240295,1720152873042,158.89,0.0001877,62]
[331240296,1720152873244,158.0,0.0001877,62]
[331240297,1720152873755,158.0,0.0001876,62]
[331240298,1720152992783,150.5,0.0001878,62]
[331240299,1720152993272,150.5,0.0001877,62]
[331240300,1720152994095,150.5,0.0001876,62]
[331240303,1720153113172,162.0,0.0001878,62]
[331240305,1720153113803,162.0,0.0001877,62]
[331240306,1720153114359,162.0,0.0001876,62]
[331240308,1720153231451,150.5,0.0001877,62]
[331240314,1720153232029,150.5,0.0001876,62]
[331240321,1720153232955,150.5,0.0001875,62]
[331240322,1720153233020,150.5,0.0001877,62]
[331240325,1720153233541,150.5,0.0001876,62]
[331240327,1720153234097,150.5,0.0001875,62]
[331240331,1720153284438,206.6942531,0.00013999,2]
[331240333,1720153345792,199.9335602,0.00013998,2]
[331240335,1720153353140,150.5,0.00016245,62]
[331240337,1720153353671,150.5,0.00016235,62]
[331240339,1720153354265,150.5,0.00016225,62]
[331240342,1720153369961,206.06748872,0.00013999,2]
[331240351,1720153473035,235.35,0.00016245,62]
[331240354,1720153502401,523.60755588,9.999e-05,2]
[331240358,1720153520219,425.25528748,9.999e-05,2]
[331240359,1720153543612,414.67004817,0.0001212,2]
[331240360,1720153547129,-220.142832,0.0001431,2]
[331240361,1720153547149,-154.80649189,0.00014794,2]
[331240362,1720153547170,-273.39975296,0.00014997,2]
[331240363,1720153547190,-500.0,0.00014997,2]
[331240364,1720153547210,-500.0,0.00014997,2]
[331240365,1720153547230,-500.0,0.00014997,2]
[331240366,1720153547251,-191.68852035,0.00014997,2]
[331240367,1720153550906,18452.9182294,0.00013998,2]
[331240393,1720153591527,150.5,0.00016245,62]
[331240394,1720153591572,239.0,0.00016245,62]
[331240398,1720153591980,150.5,0.00016235,62]
[331240400,1720153592288,239.0,0.00016235,62]
[331240402,1720153592530,151.56,0.00016225,62]
[331240404,1720153592633,239.0,0.00016225,62]
[331240417,1720153614387,-276.42306753,0.00014479,2]
[331240418,1720153622151,-2057.04351247,0.00014479,2]
[331240419,1720153622178,-413.32431864,0.00014794,2]
[331240420,1720153622204,-300.0,0.00014996,2]
[331240421,1720153622229,-162.10002085,0.00014997,2]
[331240422,1720153622256,-489.2370432,0.00014997,2]
[331240423,1720153622282,-375.49715664,0.00014997,2]
[331240424,1720153622309,-500.0,0.00014997,2]
[331240425,1720153622337,-500.0,0.00014997,2]
[331240426,1720153622480,-500.0,0.00014997,2]
[331240427,1720153622507,-500.0,0.00014997,2]
[331240428,1720153622532,-419.26310918,0.00014997,2]
[331240429,1720153622557,-500.0,0.00014997,2]
[331240430,1720153622586,-500.0,0.00014997,2]
[331240431,1720153622617,-500.0,0.00014997,2]
[331240432,1720153622645,-500.0,0.00014997,2]
[331240433,1720153622672,-500.0,0.00014997,2]
[331240434,1720153622705,-500.0,0.00014997,2]
[331240435,1720153622730,-500.0,0.00014997,2]
[331240436,1720153622756,-500.0,0.00014997,2]
[331240437,1720153622782,-500.0,0.00014997,2]
[331240438,1720153622807,-500.0,0.00014997,2]
[331240439,1720153622834,-500.0,0.00014997,2]
[331240440,1720153622861,-500.0,0.00014997,2]
[331240441,1720153622890,-500.0,0.00014997,2]
[331240442,1720153622915,-289.90931952,0.00014997,2]
[331240443,1720153622941,-500.0,0.00014997,2]
[331240444,1720153622967,-500.0,0.00014997,2]
[331240445,1720153622994,-500.0,0.00014997,2]
[331240446,1720153623020,-500.0,0.00014997,2]
[331240447,1720153623047,-500.0,0.00014997,2]
[331240448,1720153623074,-500.0,0.00014997,2]
[331240449,1720153623102,-500.0,0.00014997,2]
[331240450,1720153623138,-500.0,0.00014997,2]
[331240451,1720153623311,-500.0,0.00014997,2]
[331240452,1720153623338,-500.0,0.00014997,2]
[331240453,1720153623366,-500.0,0.00014997,2]
[331240454,1720153623391,-500.0,0.00014997,2]
[331240455,1720153623416,-500.0,0.00014997,2]
[331240456,1720153623441,-500.0,0.00014997,2]
[331240457,1720153623468,-500.0,0.00014997,2]
[331240458,1720153623495,-500.0,0.00014997,2]
[331240459,1720153623523,-500.0,0.00014997,2]
[331240460,1720153623549,-500.0,0.00014997,2]
[331240461,1720153623575,-500.0,0.00014997,2]
[331240462,1720153623601,-500.0,0.00014997,2]